Cogmind - Beta 11 X8 @@@ ROGUE MODE // 2022.02.08 @ 07:31:21 Player: maxwell Result: Destroyed by G-67 Veteran with Electrolaser Performance ------------- Evolutions (6) 3000 Regions Visited (22) 4400 Robots Destroyed (250) 1250 Value Destroyed (8940) 8940 Prototype IDs (38) 760 Alien Tech Used (3) 600 Bonus (1506) 1506 TOTAL SCORE: 20456 Bonus ------- High Alert Combat Kills 643 Follower Combat Kills 2800 Network Hubs Disabled 400 Met Zhirov 300 A7 Reached Mainframe 300 Friendly Fire -2937 Cogmind --------- Core Integrity 0/1150 Matter 18/300 Energy 100/100 System Corruption 6% Temperature Cool (0) Movement Core (50) Location -4/Factory Parts ------- > --- POWER (2) -------- (None) > --- PROPULSION (6) --- (None) > --- UTILITY (8) ------ Improved Signal Interpreter Core Analyzer Improved Core Analyzer Advanced Hacking Suite > --- WEAPON (4) ------- (None) > --- INVENTORY (5) ---- Compact Wheel Huge Storage Unit Long-range Proton Cannon Mini Smartbomb Launcher GAL Module Peak State ------------ > --- POWER ------------ Improved Deuterium Engine Heavy Antimatter Reactor > --- PROPULSION ------- Improved Treads Armored Treads Medium Treads Medium Treads Medium Treads Improved Medium Treads > --- UTILITY ---------- Huge Storage Unit Advanced Sensor Array Improved Signal Interpreter Kinecellerator Makeshift Transmission Jammer Layered Medium Armor Plating Centrium Medium Armor Plating > --- WEAPON ----------- Gauss Rifle Gauss Rifle Gauss Rifle Mini Smartbomb Launcher > --- INVENTORY -------- Improved Deuterium Engine Neutrino Core Light Quantum Reactor Advanced Power Amplifier Improved Matter Compressor Overload Amplifier Advanced Hacking Suite Dynamic Insulation System Improved System Backup Module Long-range Tractor Beam Transdimensional Reconstructor Advanced Variable Charge Gun Neutron Cannon Enhanced Autogun Heavy Battle Rifle Heavy Machine Gun KE Penetrator Mini Smartbomb Launcher Stasis Beam GAL Module [Rating: 96] Favorites ----------- Power F-cell Engine Engine F-cell Engine Power Core Neutrino Core Reactor Cold Fusion Reactor Propulsion Light Treads Treads Light Treads Leg Aluminum Leg Wheel Compact Wheel Flight Unit Field Propulsion Array Utility Huge Storage Unit Device Active Sensor Suite Storage Huge Storage Unit Processor Improved Signal Interpreter Hackware Advanced Hacking Suite Protection Improved Utility Shielding Weapon Enhanced Autogun Energy Gun Small Laser Energy Cannon Neutron Cannon Ballistic Gun Enhanced Autogun Ballistic Cannon Light Cannon Launcher Heavy Missile Launcher Special Weapon Stasis Beam Impact Weapon Great Maul Slashing Weapon Katana Build | -11 -10 -10 -9 -9 -8 -8 -7 -7 -7 -7 -6 -6 -6 -6 -6 -6 -5 -5 -5 -5 -4 -4 ------- Run | Scr Mat Min Mat Min Mat Sto Fac Low Low Zio Pro Fac Ext Cet Arc Hub Fac Upp Upp Zhi Pro Fac Slots Evolved 12 | . . . 2 . 2 . 2 . . . . 2 . . . . 2 . . . . 2 Power 1 | . . . . . . . . . . . . . . . . . 1 . . . . . Propulsion 4 | . . . 1 . . . . . . . . 2 . . . . 1 . . . . . Utility 6 | . . . . . 2 . 2 . . . . . . . . . . . . . . 2 Weapon 1 | . . . 1 . . . . . . . . . . . . . . . . . . . Parts Attached 339 | 6 6 3 16 4 10 40 43 4 8 10 8 7 44 4 4 8 43 10 8 8 14 31 Power 23 | 1 . . 1 1 . 7 1 . . . . . 3 . . . 4 . . 1 2 2 Engine 14 | 1 . . 1 1 . 6 1 . . . . . 1 . . . 1 . . . 2 . Core 6 | . . . . . . . . . . . . . 2 . . . 3 . . . . 1 Reactor 3 | . . . . . . 1 . . . . . . . . . . . . . 1 . 1 Propulsion 60 | 2 1 . 4 2 3 4 5 . 1 1 2 3 11 1 . . 9 . 3 1 3 4 Treads 53 | 2 1 . 3 . 3 4 5 . 1 1 2 3 9 1 . . 9 . 3 1 3 2 Leg 1 | . . . . 1 . . . . . . . . . . . . . . . . . . Wheel 5 | . . . 1 1 . . . . . . . . 2 . . . . . . . . 1 Hover . | . . . . . . . . . . . . . . . . . . . . . . . Flight 1 | . . . . . . . . . . . . . . . . . . . . . . 1 Utility 124 | 1 1 1 4 . 4 11 22 2 2 6 3 2 11 . 3 6 21 5 2 2 4 11 Device 77 | . . . . . . 4 17 2 . 6 3 1 6 . 2 4 16 5 2 . 4 5 Storage 10 | 1 . 1 1 . 1 . . . . . . . 1 . . 1 1 . . 1 . 2 Processor 7 | . . . 1 . . 1 . . . . . 1 1 . . . . . . . . 3 Hackware 1 | . . . . . . . . . . . . . . . . . . . . . . 1 Protection 29 | . 1 . 2 . 3 6 5 . 2 . . . 3 . 1 1 4 . . 1 . . Artifact . | . . . . . . . . . . . . . . . . . . . . . . . Weapon 132 | 2 4 2 7 1 3 18 15 2 5 3 3 2 19 3 1 2 9 5 3 4 5 14 Energy Gun 4 | 1 . . . . . . . . . . . . . 1 . . . . . . . 2 Energy Cannon 8 | . . . . . . . . . . . . . . . . 1 1 1 . . . 5 Ballistic Gun 79 | 1 2 2 6 1 2 14 8 1 2 . 2 2 10 1 1 1 7 2 3 4 3 4 Ballistic Cannon 2 | . 2 . . . . . . . . . . . . . . . . . . . . . Launcher 21 | . . . 1 . 1 1 2 1 2 1 . . 3 1 . . 1 2 . . 2 3 Special Weapon 2 | . . . . . . . . . . . . . 2 . . . . . . . . . Impact Weapon 3 | . . . . . . . . . . 1 . . 2 . . . . . . . . . Slashing Weapon 13 | . . . . . . 3 5 . 1 1 1 . 2 . . . . . . . . . Piercing Weapon . | . . . . . . . . . . . . . . . . . . . . . . . Special Melee Weapon . | . . . . . . . . . . . . . . . . . . . . . . . Unidentified Prototypes 19 | . . . . . 1 7 . . 1 2 . 1 . 1 1 . 1 . . 3 . 1 Corrupted Parts 3 | . . . . . . . . . . . . . . 1 . . . . . . 2 . System Corruption 9 | . . . . . . . . . . . . . . 6 . . . . . . 3 . Parts Lost 93 | . 1 6 4 3 . 8 8 . 1 . 7 1 2 . . . 12 4 3 . 6 27 Power 9 | . . 1 . 1 . 1 1 . . . . . . . . . 2 . . . 1 2 Propulsion 37 | . . 2 1 1 . 2 5 . 1 . 3 . . . . . 6 2 1 . 3 10 Utility 19 | . . 1 . . . 3 1 . . . 1 . . . . . 2 1 1 . 1 8 Weapon 28 | . 1 2 3 1 . 2 1 . . . 3 1 2 . . . 2 1 1 . 1 7 Highest Loss Streak 13 | . 1 6 2 2 . 5 3 . 1 . 7 1 1 . . . 8 3 2 . 4 13 Average Slot Usage (%) 86 | . 92 67 80 96 99 98 83 84 84 84 79 84 85 99 97 100 95 81 85 77 94 40 Engine 4 | . 14 4 9 10 9 7 . 7 7 7 7 6 1 . . . . . . . 3 . Core 2 | . . . . . . . . . . . . . 4 6 6 6 9 11 11 10 1 . Treads 22 | . 27 8 9 11 25 27 22 23 22 21 15 17 26 30 31 31 29 16 23 28 28 6 Device 11 | . . . . . . 1 16 14 14 19 21 25 10 12 10 8 8 14 15 12 10 3 Storage 7 | . 14 23 16 11 9 9 7 7 7 7 7 6 5 6 6 11 7 5 5 5 5 2 Processor 4 | . . . 1 11 9 8 . . . . . 4 11 12 12 12 5 5 5 5 5 10 Protection 6 | . 8 3 4 . 17 16 6 7 6 1 . . 3 6 6 4 9 5 5 5 11 1 Ballistic Gun 19 | . 15 22 31 33 26 22 21 20 17 21 21 20 15 12 20 21 21 13 7 8 20 5 Launcher 1 | . . . 1 . . . . 1 5 2 4 . . 5 4 . . 3 4 . . . Naked Turns . | . . . . . . . . . . . . . . . . . . . . . . . Heaviest Build 148 | 12 15 15 41 36 101 113 128 128 115 117 124 124 122 120 121 126 143 128 124 143 146 148 Greatest Support 157 | 40 40 40 40 32 63 63 60 60 68 68 68 108 108 100 100 100 120 111 121 149 157 157 Greatest Overweight (x) 40 | . . 3 6 2 2 1 5 2 1 1 6 2 5 1 1 1 1 1 1 1 1 40 Average Overweight (x) . | . . 1 1 1 . 1 1 1 1 1 1 1 . 1 1 1 1 1 1 . . . Largest Inventory Capacity 25 | 8 8 8 15 15 25 25 25 25 25 25 25 25 25 25 25 25 25 25 25 25 25 25 Average Capacity 23 | 7 8 8 11 15 22 25 25 25 25 25 25 25 22 25 25 25 25 25 25 25 25 16 Most Carried 25 | 1 8 8 15 15 23 25 25 25 25 25 24 22 25 25 25 25 24 22 25 25 25 21 Average Carried 21 | . 6 6 9 14 17 23 24 24 24 24 22 19 21 24 24 24 18 19 20 22 23 8 Final Capacity 25 | 8 8 8 15 15 25 25 25 25 25 25 25 25 25 25 25 25 25 25 25 25 25 5 Final Carried 25 | 1 8 5 15 15 23 25 25 25 25 24 18 22 25 25 24 25 22 19 24 25 21 5 Class Distribution -------------------- 24% | Scavenger-Skirmisher 21% | Scavenger-Mutant 13% | Scavenger-Tank 10% | Skirmisher 6% | Mutant 5% | Scavenger-Assassin 3% | Assassin 3% | Commander-Skirmisher 3% | Gunner Dominant Class ---------------- Mutant | -10/Materials Mutant | -10/Mines Gunner | -9/Materials Scavenger-Skirmisher | -9/Mines Scavenger-Tank | -8/Materials Commander-Mutant | -8/Storage Commander-Skirmisher | -7/Factory Scavenger-Skirmisher | -7/Lower Caves Scavenger-Mutant | -7/Lower Caves Assassin | -7/Zion Skirmisher | -6/Proximity Caves Scavenger-Skirmisher | -6/Factory Scavenger-Mutant | -6/Extension Scavenger-Assassin | -6/Cetus Scavenger-Skirmisher | -6/Archives Scavenger-Mutant | -6/Hub_04(d) Scavenger-Tank | -5/Factory Scavenger-Mutant | -5/Upper Caves Scavenger-Mutant | -5/Upper Caves Scavenger-Mutant | -5/Zhirov Scavenger-Tank | -4/Proximity Caves Mutant | -4/Factory Resources | -11 -10 -10 -9 -9 -8 -8 -7 -7 -7 -7 -6 -6 -6 -6 -6 -6 -5 -5 -5 -5 -4 -4 ----------- Run | Scr Mat Min Mat Min Mat Sto Fac Low Low Zio Pro Fac Ext Cet Arc Hub Fac Upp Upp Zhi Pro Fac Matter Collected 10239 | 260 155 46 612 301 297 1198 995 196 558 90 316 138 1063 40 256 150 919 628 258 418 955 390 Remotely 1005 | . . . . . . . 355 . . . . . . . . . 149 243 258 . . . Salvage Created 10788 | . 405 24 747 321 378 1495 1287 24 875 . 288 138 796 . 166 165 1052 493 478 418 660 578 Parts 548 | . 20 . 51 23 23 92 71 3 17 . 18 10 44 . 5 6 58 21 29 5 23 29 Haulers Intercepted 7 | . . . . . 1 5 . . . . . . . . . . 1 . . . . . Recyclers Shooed 15 | . 2 . 1 . . 4 1 . . . . 1 . . . . 2 . . . . 4 Parts Field Recycled . | . . . . . . . . . . . . . . . . . . . . . . . Retrieved Matter . | . . . . . . . . . . . . . . . . . . . . . . . Parts Self-Destructed 86 | . . . . . . . . 4 5 2 16 . . . . . . 16 15 2 26 . Prevented 6 | . . . . . . . . 1 1 . . . . . . . . 3 . . 1 . Kills | -11 -10 -10 -9 -9 -8 -8 -7 -7 -7 -7 -6 -6 -6 -6 -6 -6 -5 -5 -5 -5 -4 -4 ------- Run | Scr Mat Min Mat Min Mat Sto Fac Low Low Zio Pro Fac Ext Cet Arc Hub Fac Upp Upp Zhi Pro Fac Combat Hostiles Destroyed 183 | . 9 4 18 9 9 18 27 3 10 . 9 2 7 . 2 1 8 15 5 . 14 13 Guns 127 | . 7 3 15 9 9 18 23 1 3 . 4 2 7 . 2 1 8 2 1 . 7 5 Cannons 5 | . 2 1 . . . . . . . . . . . . . . . . . . . 2 AOE 51 | . . . 3 . . . 4 2 7 . 5 . . . . . . 13 4 . 7 6 Classes Destroyed 23 | . 4 2 4 . 1 3 3 . 1 . 1 . 1 . . . . 1 1 . 1 . Worker 21 | . 1 . 1 . . 4 1 . . . . . 5 . . . 5 . . . . 4 Builder 8 | . . . 1 . . 1 . . . . . . 2 . . . 2 . . . . 2 Tunneler 1 | . . . . . . . . . . . . . 1 . . . . . . . . . Hauler 7 | . . . . . 1 5 . . . . . . . . . . 1 . . . . . Recycler 13 | . 2 . 1 . 1 5 . . . . . . 1 . . . 3 . . . . . Operator 2 | . . . . . . 2 . . . . . . . . . . . . . . . . Watcher 7 | . . . 2 . . . 1 . . . . . 1 . . 1 2 . . . . . Swarmer 52 | . 3 . 8 3 6 4 3 3 3 . 5 . . . . . . 5 4 . 2 3 Grunt 61 | . 6 . 6 5 2 5 13 . 6 . 1 . . . . 1 2 4 . . 8 2 Brawler 3 | . . . . . . . 1 . . . . . . . . . . 2 . . . . Duelist 10 | . . . 1 1 . 1 2 . 1 . . . . . . . . 2 . . 1 1 Protector 1 | . . . . . . . . . . . . . . . . . . . . . 1 . Researcher 1 | . . . . . . . . . 1 . . . . . . . . . . . . . Sentry 25 | . . . 3 . 1 6 2 . . . 1 2 4 . 2 . . 1 . . 2 1 Demolisher 2 | . . 2 . . . . . . . . . . . . . . . . . . . . Specialist 3 | . . . . . . 2 1 . . . . . . . . . . . . . . . Hunter 9 | . . . . . . . 1 . . . 1 . . . . . 4 . . . . 3 Programmer 10 | . . . . . . . 3 . . . . . 1 . . . 2 2 . . . 2 Heavy 2 | . . . . . . 1 1 . . . . . . . . . . . . . . . Behemoth 4 | . . . . . . . . . . . 1 . 2 . . . . . . . . 1 Enhanced Grunt 1 | . . . . . . . . . . . . . . . . 1 . . . . . . Samaritan 5 | . . . . . . . . . . . . . . . . . . 2 3 . . . Assembled 2 | . . 2 . . . . . . . . . . . . . . . . . . . . Thug 1 | . . . . . . . . . 1 . . . . . . . . . . . . . Butcher 3 | . . . . . . . . . . . . . 1 . . . . . 2 . . . Guerrilla 1 | . . . . . . . . . . . . . 1 . . . . . . . . . Mutant 2 | . . . . . . . . . . . . . . . . . . . 2 . . . Best Kill Streak 9 | . 6 4 5 3 4 9 6 3 4 . 7 1 4 . 2 1 6 7 4 . 5 8 Combat Bots Only 9 | . 4 4 5 3 4 9 6 3 4 . 7 1 1 . 2 1 2 7 4 . 5 6 Max Kills in Single Turn 4 | . 1 1 2 1 2 3 3 2 2 . 2 1 1 . 1 2 4 3 4 . 2 3 Gunslinging 1 | . . . . . . . . . . . . . . . . . . . . . 1 . Exploded 4 | . . . 2 . . . 3 2 2 . 2 . . . . . . 3 4 . 2 2 Melee . | . . . . . . . . . . . . . . . . . . . . . . . Uniques/NPCs Destroyed . | . . . . . . . . . . . . . . . . . . . . . . . Combat | -11 -10 -10 -9 -9 -8 -8 -7 -7 -7 -7 -6 -6 -6 -6 -6 -6 -5 -5 -5 -5 -4 -4 -------- Run | Scr Mat Min Mat Min Mat Sto Fac Low Low Zio Pro Fac Ext Cet Arc Hub Fac Upp Upp Zhi Pro Fac Damage Taken 16794 | . 630 396 910 224 230 1488 1665 16 191 . 1407 196 474 59 152 368 1985 540 158 . 1153 4552 Core 2111 | . 150 75 148 37 . 148 151 16 . . 111 6 17 . . . 85 12 16 . 73 1066 Absorbed by Shields 934 | . . . . . . . 359 . . . 237 . 6 57 . . 244 31 . . . . Reduced by Siege Mode 181 | . . . . . . . . . . . . . . . . . . . . . . 181 Core Remaining (%) 67 | 100 . 10 . 53 . 73 . . . . 60 . . . . 97 . . . . 81 . Volleys Fired 722 | . 48 14 56 24 26 65 82 6 42 . 36 6 48 15 9 23 48 25 32 30 29 58 Largest 4 | . 2 2 3 3 3 3 3 2 3 . 3 4 4 2 3 4 4 4 4 1 4 4 Hottest 240 | . 60 55 66 69 69 71 75 50 75 . 75 100 100 240 75 108 103 106 115 25 117 130 Shots Fired 1800 | . 95 25 152 72 77 188 239 9 102 . 96 24 140 25 28 42 177 34 45 30 88 112 Gun 1666 | . 76 23 148 72 77 186 236 6 91 . 90 24 129 21 28 26 176 12 42 30 80 93 Cannon 61 | . 19 2 . . . . . . . . . . . . . 16 1 11 1 . . 11 Launcher 69 | . . . 4 . . 2 3 3 11 . 6 . 7 4 . . . 11 2 . 8 8 Special 4 | . . . . . . . . . . . . . 4 . . . . . . . . . Kinetic 1646 | . 76 25 148 72 77 186 236 6 91 . 90 24 129 20 28 26 176 12 42 30 80 72 Thermal 77 | . 19 . . . . . . . . . . . . 1 . 16 1 11 1 . . 28 Explosive 67 | . . . 4 . . . 3 3 11 . 6 . 7 4 . . . 11 2 . 8 8 Electromagnetic 6 | . . . . . . 2 . . . . . . . . . . . . . . . 4 Robot Hit Streak 25 | . 7 4 18 13 13 16 11 2 7 . 12 13 14 7 9 4 9 7 25 19 18 12 Robot Miss Streak 9 | . 5 2 5 3 5 3 9 1 4 . 4 2 3 3 2 4 5 1 3 1 3 5 Penetration Max 1 | . . . . . . . . . . . . . . . . . 1 . . . 1 1 Secondary Targets 25 | . 3 1 2 3 1 6 4 . . . . . . . . . 2 . . . 2 1 Max Gunslinging Chain 1 | . 1 1 1 1 1 1 1 . . . . . . . . . 1 . . . 1 1 Shots Hit Robots 1118 | . 52 18 84 44 45 123 159 3 47 . 68 15 107 15 23 10 101 21 35 29 59 60 Core Hits 580 | . 23 10 32 19 17 63 67 8 41 . 23 6 33 11 8 11 42 39 22 9 49 47 Critical Kills 6 | . . . . . . . . . 1 . 1 1 1 . . . . . 1 . 1 . Critical Parts Destroyed 8 | . . . . . . . 2 . 1 . . . . . . 1 2 . . . 1 1 Critical Strikes 15 | . . . 1 . . . 2 . 2 . 1 1 1 . . 1 2 . 1 . 2 1 Destroy 15 | . . . 1 . . . 2 . 2 . 1 1 1 . . 1 2 . 1 . 2 1 Melee Attacks 110 | . . . . . . 9 7 . 1 5 1 . 87 . . . . . . . . . Impact 25 | . . . . . . . . . . 4 . . 21 . . . . . . . . . Slashing 85 | . . . . . . 9 7 . 1 1 1 . 66 . . . . . . . . . Piercing . | . . . . . . . . . . . . . . . . . . . . . . . Sneak Attacks 12 | . . . . . . 1 . . . . . . 11 . . . . . . . . . Combat Hostiles . | . . . . . . . . . . . . . . . . . . . . . . . Follow-up Attacks . | . . . . . . . . . . . . . . . . . . . . . . . Damage Inflicted 30621 | . 582 184 1275 707 729 2360 3412 189 1782 . 1436 282 3497 481 438 477 2497 2346 1073 595 2940 3339 Guns 18637 | . 360 148 1076 662 710 2024 2767 54 857 . 1103 282 1608 239 438 246 1862 213 676 595 1428 1289 Cannons 766 | . 222 36 . . . . . . . . . . . . . . . 343 40 . . 125 Explosions 9155 | . . . 199 . . 186 642 135 925 . 333 . 84 242 . 231 605 1790 357 . 1512 1914 Melee 1747 | . . . . . . 113 . . . . . . 1634 . . . . . . . . . Ramming 316 | . . . . 45 19 37 3 . . . . . 171 . . . 30 . . . . 11 Kinetic 18242 | . 497 184 1076 662 710 2024 2767 54 857 . 1103 282 1608 239 438 246 1862 213 676 595 1428 721 Thermal 1729 | . 85 . . . . 88 . . . . . . . . . . 605 343 40 . . 568 Explosive 8158 | . . . 199 . . 25 642 135 925 . 333 . 84 242 . . . 1790 357 . 1512 1914 Electromagnetic 429 | . . . . . . 73 . . . . . . . . . 231 . . . . . 125 Impact 93 | . . . . . . . . . . . . . 93 . . . . . . . . . Slashing 1654 | . . . . . . 113 . . . . . . 1541 . . . . . . . . . Piercing . | . . . . . . . . . . . . . . . . . . . . . . . Highest Corruption 6 | . . . . . . . 1 1 1 1 . . . 6 6 4 1 1 1 1 4 6 Average Corruption 1 | . . . . . . . 1 1 1 1 . . . 6 4 3 1 1 1 1 1 3 Corruption Purged 3 | . . . . . . . . . . . . . . . 3 . . . . . . . Effects 86 | . . . . . . . 3 7 14 . . . . 2 7 27 . 3 6 4 4 9 Message Errors 39 | . . . . . . . 2 4 10 . . . . . 1 9 . 1 2 4 1 5 Matter Fused 7 | . . . . . . . . . . . . . . . 1 5 . . . . . 1 Heat Flow Errors 7 | . . . . . . . . . . . . . . . 2 5 . . . . . . Energy Discharges 23 | . . . . . . . 1 3 3 . . . . 2 1 4 . 1 3 . 3 2 Data Loss (minor) 7 | . . . . . . . . . . . . . . . . 4 . 1 1 . . 1 Data Loss (major) 1 | . . . . . . . . . . . . . . . 1 . . . . . . . Misfires 1 | . . . . . . . . . . . . . . . 1 . . . . . . . Weapon Failures 1 | . . . . . . . . . 1 . . . . . . . . . . . . . Overload Shots 1 | . . . . . . . . . . . . . . 1 . . . . . . . . Overflow Damage 1119 | . . . 9 . . . 24 . 32 . 8 . 673 . . 4 144 79 53 . 13 80 Projectiles 37 | . . . . . . . . . . . . . . . . . . 37 . . . . Explosions 405 | . . . 9 . . . 24 . 32 . 8 . . . . 4 140 42 53 . 13 80 Melee 677 | . . . . . . . . . . . . . 673 . . . 4 . . . . . Knockbacks 7 | . 5 . . 2 . . . . . . . . . . . . . . . . . . Impact 2 | . . . . 2 . . . . . . . . . . . . . . . . . . Kinetic 5 | . 5 . . . . . . . . . . . . . . . . . . . . . Secondary . | . . . . . . . . . . . . . . . . . . . . . . . Self-Inflicted Damage 780 | . . . 57 21 . 57 100 . 68 . . . . . . 192 . 104 . . . 181 Shots 16 | . . . 2 . . 2 3 . 2 . . . . . . 2 . 3 . . . 2 Rammed 25 | . . . . 6 2 5 1 . . . . . 7 . . . . . . . . 4 Targets Rammed 32 | . . . . 6 2 8 1 . . . . . 9 . . . 2 . . . . 4 Kicked . | . . . . . . . . . . . . . . . . . . . . . . . Crushed 7 | . . . . . . 3 . . . . . . 2 . . . 2 . . . . . Highest Temperature 491 | . 90 20 69 30 49 183 154 46 356 . 372 216 280 192 205 280 491 343 172 10 336 307 Average Temperature 82 | . 27 11 20 9 24 44 36 22 99 . 182 98 82 36 63 94 171 95 45 6 111 83 Received Heat Transfer 2625 | . 207 80 153 60 72 369 291 . 18 . 180 60 150 . . 45 87 57 . . 232 564 Effects 13 | . . . . . . . . . . . 1 . . . . 3 8 . . . 1 . Shutdowns 3 | . . . . . . . . . . . . . . . . . 3 . . . . . Energy Bleed 2 | . . . . . . . . . . . 1 . . . . . . . . . 1 . Interference 5 | . . . . . . . . . . . . . . . . 3 2 . . . . . Matter Decay 1 | . . . . . . . . . . . . . . . . . 1 . . . . . Short Circuit 2 | . . . . . . . . . . . . . . . . . 2 . . . . . Siege Activations 1 | . . . . . . . . . . . . . . . . . . . . . . 1 Total Turns 24 | . . . . . . . . . . . . . . . . . . . . . . 24 Longest Duration 24 | . . . . . . . . . . . . . . . . . . . . . . 24 Robots Corrupted . | . . . . . . . . . . . . . . . . . . . . . . . Combat Hostiles . | . . . . . . . . . . . . . . . . . . . . . . . Parts Fried 6 | . . . . . . . . . . . . . 1 . . 2 2 1 . . . . Impact Corruptions 3 | . . . . . . . . . . . . . 2 . . . 1 . . . . . Robots Melted . | . . . . . . . . . . . . . . . . . . . . . . . Combat Hostiles . | . . . . . . . . . . . . . . . . . . . . . . . Parts Melted . | . . . . . . . . . . . . . . . . . . . . . . . Heat Transferred 1629 | . 200 . . . . 100 . . . . . . . . . . 450 225 25 . . 629 Parts Sabotaged . | . . . . . . . . . . . . . . . . . . . . . . . Parts Stolen . | . . . . . . . . . . . . . . . . . . . . . . . Parts Stripped . | . . . . . . . . . . . . . . . . . . . . . . . Power Chain Reactions 2 | . . . . . . 2 . . . . . . . . . . . . . . . . Missiles Intercepted . | . . . . . . . . . . . . . . . . . . . . . . . Alert | -11 -10 -10 -9 -9 -8 -8 -7 -7 -7 -7 -6 -6 -6 -6 -6 -6 -5 -5 -5 -5 -4 -4 ------- Run | Scr Mat Min Mat Min Mat Sto Fac Low Low Zio Pro Fac Ext Cet Arc Hub Fac Upp Upp Zhi Pro Fac Peak Influence 971 | . 206 62 207 184 216 651 971 . . . . 90 390 626 440 761 752 . . . . 412 Initial 372 | . . 52 16 79 . 5 267 . . . . . . 218 250 154 372 . . . . . Average 282 | . 83 45 120 73 57 353 570 . . . . 26 178 431 411 431 505 . . . . 105 Maximum Alert Level 3 | . 1 . 1 . 1 2 3 . . . . . 1 2 2 3 3 . . . . 2 Low Security (%) 41 | 100 97 100 86 100 83 11 2 . . . . 100 51 . . 3 . . . . . 82 Level 1 33 | . 2 . 13 . 16 62 35 . . . . . 48 57 20 41 21 . . . . 16 Level 2 17 | . . . . . . 26 18 . . . . . . 42 79 52 72 . . . . . Level 3 6 | . . . . . . . 42 . . . . . . . . 2 6 . . . . . Level 4 . | . . . . . . . . . . . . . . . . . . . . . . . Level 5 . | . . . . . . . . . . . . . . . . . . . . . . . High Security . | . . . . . . . . . . . . . . . . . . . . . . . Max Security . | . . . . . . . . . . . . . . . . . . . . . . . Squads Dispatched 44 | . 3 . 2 . 1 4 19 . . . . 1 1 . . 6 2 . . . 1 4 Investigation 7 | . . . . . . 1 5 . . . . . . . . 1 . . . . . . Extermination 10 | . . . . . . . 4 . . . . . . . . 2 2 . . . . 2 Reinforcement 21 | . 3 . 2 . 1 2 6 . . . . 1 1 . . 3 . . . . . 2 Assault 2 | . . . . . . . 1 . . . . . . . . . . . . . 1 . Garrison 4 | . . . . . . 1 3 . . . . . . . . . . . . . . . Intercept . | . . . . . . . . . . . . . . . . . . . . . . . Construction Impeded 3 | . . . . . . . . . . . . . 1 . . 1 . . . . . 1 Haulers Reinforced . | . . . . . . . . . . . . . . . . . . . . . . . Active Scanning Responses 4 | . . . . . . . 4 . . . . . . . . . . . . . . . Cargo Convoy Interrupts 1 | . . . . . . . 1 . . . . . . . . . . . . . . . Stealth | -11 -10 -10 -9 -9 -8 -8 -7 -7 -7 -7 -6 -6 -6 -6 -6 -6 -5 -5 -5 -5 -4 -4 --------- Run | Scr Mat Min Mat Min Mat Sto Fac Low Low Zio Pro Fac Ext Cet Arc Hub Fac Upp Upp Zhi Pro Fac Distress Signals 13 | . . . 1 . . 4 1 . . . . 1 2 1 . 3 . . . . . . Communications Jammed 16 | . . . . . . 7 6 . . . . . . . . . . . . . . 3 Distress Signals 4 | . . . . . . . 1 . . . . . . . . . . . . . . 3 Times Spotted 345 | . 18 12 26 10 12 35 44 1 8 . 11 2 30 10 10 20 12 14 2 . 13 55 Peak Tracking Total 10 | . 5 9 6 2 3 6 6 3 4 . 4 3 4 4 1 3 2 7 1 . 5 10 Tactical Retreats 16 | . . . 1 1 . . 3 . 1 . . . . . . . . . . . . 10 Traps | -11 -10 -10 -9 -9 -8 -8 -7 -7 -7 -7 -6 -6 -6 -6 -6 -6 -5 -5 -5 -5 -4 -4 ------- Run | Scr Mat Min Mat Min Mat Sto Fac Low Low Zio Pro Fac Ext Cet Arc Hub Fac Upp Upp Zhi Pro Fac Traps Triggered 13 | . 1 . . . 2 6 . . . . . . 1 . . . 3 . . . . . Indirectly . | . . . . . . . . . . . . . . . . . . . . . . . Trap Hack Attempts . | . . . . . . . . . . . . . . . . . . . . . . . Triggered . | . . . . . . . . . . . . . . . . . . . . . . . Disarmed . | . . . . . . . . . . . . . . . . . . . . . . . Reprogrammed . | . . . . . . . . . . . . . . . . . . . . . . . Reused 3 | . . . . . . . . . 3 . . . . . . . . . . . . . Traps Extracted . | . . . . . . . . . . . . . . . . . . . . . . . Installed 3 | . . . . . . . . . 3 . . . . . . . . . . . . . Triggered 15 | . . . . . . . 1 1 6 . 3 . . . . . . 1 . . 1 2 Machines | -11 -10 -10 -9 -9 -8 -8 -7 -7 -7 -7 -6 -6 -6 -6 -6 -6 -5 -5 -5 -5 -4 -4 ---------- Run | Scr Mat Min Mat Min Mat Sto Fac Low Low Zio Pro Fac Ext Cet Arc Hub Fac Upp Upp Zhi Pro Fac Machines Disabled 63 | . . . . 1 1 7 . . . . . . 6 2 2 18 18 1 1 . 1 5 Max in Single Turn 18 | . . . . 1 1 2 . . . . . . 1 1 1 11 18 1 1 . 1 2 Garrison Access 1 | . . . . . . 1 . . . . . . . . . . . . . . . . Network Hub 2 | . . . . . . . . . . . . . . . . 2 . . . . . . Machines Sabotaged . | . . . . . . . . . . . . . . . . . . . . . . . Garrisons Compromised 1 | . . . . . . . 1 . . . . . . . . . . . . . . . Overloaded Fab Kills . | . . . . . . . . . . . . . . . . . . . . . . . Hacking | -11 -10 -10 -9 -9 -8 -8 -7 -7 -7 -7 -6 -6 -6 -6 -6 -6 -5 -5 -5 -5 -4 -4 --------- Run | Scr Mat Min Mat Min Mat Sto Fac Low Low Zio Pro Fac Ext Cet Arc Hub Fac Upp Upp Zhi Pro Fac Machines Accessed 58 | . 1 . 3 . 6 11 8 1 . . . . 11 1 . 2 3 . . 5 . 6 Terminals 42 | . 1 . 2 . 5 10 5 . . . . . 11 1 . 2 1 . . . . 4 Fabricators 5 | . . . . . . . 2 . . . . . . . . . 1 . . . . 2 Repair Stations . | . . . . . . . . . . . . . . . . . . . . . . . Recycling Units 1 | . . . 1 . . . . . . . . . . . . . . . . . . . Scanalyzers 2 | . . . . . 1 . 1 . . . . . . . . . . . . . . . Garrison Access 2 | . . . . . . 1 . . . . . . . . . . 1 . . . . . Total Hacks 199 | . 4 . 7 . 28 27 30 1 . . . . 26 1 . 13 12 . . 18 . 32 Successful 126 | . 2 . 5 . 18 18 18 1 . . . . 17 . . 5 5 . . 18 . 19 Failed 73 | . 2 . 2 . 10 9 12 . . . . . 9 1 . 8 7 . . . . 13 Catastrophic 13 | . . . . . . 1 5 . . . . . 1 . . 3 2 . . . . 1 Database Lockouts . | . . . . . . . . . . . . . . . . . . . . . . . Manual 114 | . 5 . 6 . 23 16 15 . . . . . 13 1 . 10 7 . . . . 18 Terminals 146 | . 4 . 6 . 26 25 13 . . . . . 26 1 . 13 9 . . . . 23 Fabricators 16 | . . . . . . . 5 . . . . . . . . . 2 . . . . 9 Repair Stations . | . . . . . . . . . . . . . . . . . . . . . . . Recycling Units 1 | . . . 1 . . . . . . . . . . . . . . . . . . . Scanalyzers 14 | . . . . . 2 . 12 . . . . . . . . . . . . . . . Garrison Access 3 | . . . . . . 2 . . . . . . . . . . 1 . . . . . Terminal Hacks 72 | . 1 . 3 . 10 10 4 1 . . . . 11 . . 2 2 . . 18 . 10 Record 6 | . . . . . . . . . . . . . . . . . . . . 6 . . Part Schematic 5 | . . . . . . . . . . . . . . . . 1 . . . 4 . . Robot Schematic 1 | . . . . . . . . . . . . . 1 . . . . . . . . . Robot Analysis 9 | . . . 2 . 1 1 . . . . . . 1 . . . . . . 4 . . Prototype ID Bank 11 | . . . . . 2 2 . . . . . . 1 . . . 1 . . 4 . 1 Open Door 10 | . . . . . . 4 . 1 . . . . 5 . . . . . . . . . Open DSF 1 | . . . . . . . 1 . . . . . . . . . . . . . . . Level Access Points 1 | . . . . . . 1 . . . . . . . . . . . . . . . . Branch Access Points 3 | . . . . . 1 . 1 . . . . . . . . . . . . . . 1 Terminal Index 9 | . 1 . 1 . 1 1 1 . . . . . 1 . . 1 1 . . . . 1 Alert Level 2 | . . . . . . . . . . . . . 1 . . . . . . . . 1 Unreport Threat 2 | . . . . . 1 . . . . . . . . . . . . . . . . 1 Locate Traps 5 | . . . . . 2 1 . . . . . . 1 . . . . . . . . 1 Investigation Status 2 | . . . . . . . . . . . . . . . . . . . . . . 2 Recall Extermination 1 | . . . . . . . . . . . . . . . . . . . . . . 1 Hauler Manifests 1 | . . . . . . . . . . . . . . . . . . . . . . 1 Zone Layout 3 | . . . . . 2 . 1 . . . . . . . . . . . . . . . Fabricator Hacks 4 | . . . . . . . 1 . . . . . . . . . . . . . . 3 Network Status 2 | . . . . . . . 1 . . . . . . . . . . . . . . 1 Build 2 | . . . . . . . . . . . . . . . . . . . . . . 2 Repair Station Hacks . | . . . . . . . . . . . . . . . . . . . . . . . Recycling Unit Hacks 1 | . . . 1 . . . . . . . . . . . . . . . . . . . Retrieve Components 1 | . . . 1 . . . . . . . . . . . . . . . . . . . Scanalyzer 12 | . . . . . 2 . 10 . . . . . . . . . . . . . . . Insert Component 3 | . . . . . 1 . 2 . . . . . . . . . . . . . . . Analyze 9 | . . . . . 1 . 8 . . . . . . . . . . . . . . . Garrison Access Hacks 1 | . . . . . . 1 . . . . . . . . . . . . . . . . Seal Access 1 | . . . . . . 1 . . . . . . . . . . . . . . . . Unauthorized Hacks 36 | . 1 . 1 . 6 7 3 . . . . . 6 . . 3 3 . . . . 6 Terminals 33 | . 1 . 1 . 6 7 2 . . . . . 6 . . 3 3 . . . . 4 Track 10 | . . . . . 2 3 1 . . . . . 1 . . 1 1 . . . . 1 Assimilate 1 | . . . . . . . . . . . . . . . . . . . . . . 1 Botnet 17 | . 1 . . . 3 4 1 . . . . . 4 . . 2 1 . . . . 1 Disrupt 1 | . . . . . . . . . . . . . 1 . . . . . . . . . Operators 4 | . . . 1 . 1 . . . . . . . . . . . 1 . . . . 1 Fabricators 3 | . . . . . . . 1 . . . . . . . . . . . . . . 2 Fabnet 3 | . . . . . . . 1 . . . . . . . . . . . . . . 2 Repair Stations . | . . . . . . . . . . . . . . . . . . . . . . . Recycling Units . | . . . . . . . . . . . . . . . . . . . . . . . Scanalyzers . | . . . . . . . . . . . . . . . . . . . . . . . Garrison Access . | . . . . . . . . . . . . . . . . . . . . . . . Data Cores Recovered 1 | . . . . . . 1 . . . . . . . . . . . . . . . . Used . | . . . . . . . . . . . . . . . . . . . . . . . Hacking Detections 41 | . 1 . 2 . 5 8 6 . . . . . 7 1 . 2 3 . . . . 6 Full Trace Events 1 | . . . . . . . . . . . . . . . . 1 . . . . . . Feedback Events . | . . . . . . . . . . . . . . . . . . . . . . . Feedback Blocked . | . . . . . . . . . . . . . . . . . . . . . . . Robot Schematics Acquired 1 | . . . . . . . . . . . . . 1 . . . . . . . . . Robots Built . | . . . . . . . . . . . . . . . . . . . . . . . Authchips . | . . . . . . . . . . . . . . . . . . . . . . . Time . | . . . . . . . . . . . . . . . . . . . . . . . Total Robot Build Rating . | . . . . . . . . . . . . . . . . . . . . . . . Part Schematics Acquired 7 | . . . . . 1 . 1 . . . . . . . . 1 . . . 4 . . Parts Built 3 | . . . . . . . . . . . . . . . . . . . . . . 3 Authchips . | . . . . . . . . . . . . . . . . . . . . . . . Time 115 | . . . . . . . . . . . . . . . . . . . . . . 115 Total Part Build Rating 27 | . . . . . . . . . . . . . . . . . . . . . . 27 Parts Repaired . | . . . . . . . . . . . . . . . . . . . . . . . Time . | . . . . . . . . . . . . . . . . . . . . . . . Parts Recycled . | . . . . . . . . . . . . . . . . . . . . . . . Recycled Matter . | . . . . . . . . . . . . . . . . . . . . . . . Retrieved Matter . | . . . . . . . . . . . . . . . . . . . . . . . Retrieved Components 8 | . . . 8 . . . . . . . . . . . . . . . . . . . Parts Scanalyzed 3 | . . . . . 1 . 2 . . . . . . . . . . . . . . . Part Schematics Acquired 2 | . . . . . 1 . 1 . . . . . . . . . . . . . . . Parts Damaged . | . . . . . . . . . . . . . . . . . . . . . . . Bothacking | -11 -10 -10 -9 -9 -8 -8 -7 -7 -7 -7 -6 -6 -6 -6 -6 -6 -5 -5 -5 -5 -4 -4 ------------ Run | Scr Mat Min Mat Min Mat Sto Fac Low Low Zio Pro Fac Ext Cet Arc Hub Fac Upp Upp Zhi Pro Fac Used RIF Installer . | . . . . . . . . . . . . . . . . . . . . . . . Robots Hacked 3 | . . . . . . . . . . . . . 1 . . 1 . . 1 . . . Non-combat . | . . . . . . . . . . . . . . . . . . . . . . . Combat 3 | . . . . . . . . . . . . . 1 . . 1 . . 1 . . . Robot Hacks Applied . | . . . . . . . . . . . . . . . . . . . . . . . Relay Couplers Released . | . . . . . . . . . . . . . . . . . . . . . . . Fabnet Peak Effective % 3 | . . . . . . . . . . . 3 3 3 3 3 3 1 1 1 1 . . Autooverrided 3 | . . . . . . . . . . . . . 1 . . 1 . . 1 . . . Robots Rewired 25 | . . . . . . . . . . . . . 17 . . . . 2 4 . 2 . Allies Hacked . | . . . . . . . . . . . . . . . . . . . . . . . Hacks Repelled . | . . . . . . . . . . . . . . . . . . . . . . . Allies | -11 -10 -10 -9 -9 -8 -8 -7 -7 -7 -7 -6 -6 -6 -6 -6 -6 -5 -5 -5 -5 -4 -4 -------- Run | Scr Mat Min Mat Min Mat Sto Fac Low Low Zio Pro Fac Ext Cet Arc Hub Fac Upp Upp Zhi Pro Fac Total Allies 55 | . . . . . . 14 . . . . . . 26 4 . 1 . 2 5 . 2 1 Largest Group 12 | . . . . . . 12 9 . . . . . 9 5 5 5 . 2 4 4 3 2 Highest-Rated Group 539 | . . . . . . 331 273 . . . . . 274 539 539 409 . 60 106 106 96 91 Highest-Rated Ally 159 | . . . . . . 100 100 . . . . . 159 159 159 95 . 30 54 31 49 49 Total Orders 21 | . . . . . . . 3 . . . 2 1 3 . . 4 3 . 1 . 2 2 STAY 6 | . . . . . . . . . . . . . 2 . . 1 . . 1 . 1 1 FOLLOW 3 | . . . . . . . . . . . . . 1 . . . . . . . 1 1 GUARD 1 | . . . . . . . 1 . . . . . . . . . . . . . . . EXPLORE 6 | . . . . . . . 2 . . . 1 1 . . . 1 1 . . . . . RETURN 5 | . . . . . . . . . . . 1 . . . . 2 2 . . . . . Ally Attacks 466 | . . . . . . 69 90 . . . . . 146 30 13 77 . 1 3 . 25 12 Total Damage 11594 | . . . . . . 840 1263 . . . . . 3206 1307 548 3216 . 37 75 . 721 381 Kills 90 | . . . . . . 12 8 . . . . . 31 11 2 21 . . 1 . 3 1 Allies Corrupted . | . . . . . . . . . . . . . . . . . . . . . . . Allies Melted 1 | . . . . . . . . . . . . . 1 . . . . . . . . . Intel | -11 -10 -10 -9 -9 -8 -8 -7 -7 -7 -7 -6 -6 -6 -6 -6 -6 -5 -5 -5 -5 -4 -4 ------- Run | Scr Mat Min Mat Min Mat Sto Fac Low Low Zio Pro Fac Ext Cet Arc Hub Fac Upp Upp Zhi Pro Fac Robot Analysis Total 9 | . . . 2 . 1 1 . . . . . . 1 . . . . . . 4 . . Derelict Logs Recovered 10 | . . . . 2 . . . 1 1 . 1 . . . . . . 2 2 . 1 . Drone Launches 11 | . . . . . . . 2 . . . 2 1 . . . 2 4 . . . . . Drone Recoveries 6 | . . . . . . . . . . . 1 1 . . . 2 2 . . . . . Exploration | -11 -10 -10 -9 -9 -8 -8 -7 -7 -7 -7 -6 -6 -6 -6 -6 -6 -5 -5 -5 -5 -4 -4 ------------- Run | Scr Mat Min Mat Min Mat Sto Fac Low Low Zio Pro Fac Ext Cet Arc Hub Fac Upp Upp Zhi Pro Fac Turns Passed 31639 | 74 662 122 1103 929 926 2001 2623 2320 3937 2077 1617 414 4506 381 279 1525 1331 825 1246 542 1168 1031 Spaces Moved 12384 | 44 316 45 434 684 372 672 853 939 1261 834 493 132 1843 142 99 593 463 305 459 269 470 662 Core 508 | 5 . 27 107 . . . . . . . . . 71 . . . . . . . . 298 Treads 10599 | 39 316 18 234 26 362 672 853 939 1261 834 493 132 1411 142 99 593 463 305 459 269 470 209 Legs . | . . . . . . . . . . . . . . . . . . . . . . . Wheels 1181 | . . . 93 658 10 . . . . . . . 361 . . . . . . . . 59 Hover . | . . . . . . . . . . . . . . . . . . . . . . . Flight 96 | . . . . . . . . . . . . . . . . . . . . . . 96 Fastest Speed 40 | 50 160 160 115 115 130 243 240 240 240 240 243 242 50 240 240 240 240 240 240 163 161 40 Average Speed 217 | 147 160 184 200 121 211 243 243 241 240 241 310 289 197 240 240 240 240 240 242 167 216 110 Slowest Speed 2050 | 160 160 200 350 240 243 243 560 320 240 243 650 325 300 240 240 240 240 240 245 244 242 2050 Overloaded Moves . | . . . . . . . . . . . . . . . . . . . . . . . Propulsion Burnouts . | . . . . . . . . . . . . . . . . . . . . . . . Robots Hopped . | . . . . . . . . . . . . . . . . . . . . . . . Cave-ins Triggered . | . . . . . . . . . . . . . . . . . . . . . . . Teleports 1 | . . . . . . . . . . . . . . . . . . . . . . 1 Exploration Rate (%) 55 | 4 58 13 29 97 38 95 27 86 85 82 64 5 98 76 88 53 16 51 62 62 66 23 Regions Visited 22 Branch Regions 15 Pre-discovered Areas 4 | . . . . . . . . . 1 . . . . . . . . . . 3 . . Known Exits Taken 16 | . . . . . 1 1 1 1 1 1 1 . 1 1 1 1 1 1 1 1 1 . Unknown Exits Taken 6 | 1 1 1 1 1 . . . . . . . 1 . . . . . . . . . . Scrap Searched 18 | . . . . 3 . . . 4 2 2 4 . . . . . . 2 . . 1 . Spaces Dug 77 | . . . 7 . . 3 7 . 30 1 1 . 18 . . 3 1 . . . . 6 Terrain Destroyed 1089 | . . . 31 . . 34 25 39 155 1 55 . 97 47 . 341 37 83 32 . 51 61 Melee 16 | . . . . . . 3 7 . 1 1 1 . 3 . . . . . . . . . Projectile 28 | . . . . . . . . 1 . . . . . . . 11 1 2 . . 4 9 AOE 1045 | . . . 31 . . 31 18 38 154 . 54 . 94 47 . 330 36 81 32 . 47 52 Terrain Rammed . | . . . . . . . . . . . . . . . . . . . . . . . Walls Destroyed . | . . . . . . . . . . . . . . . . . . . . . . . Machines Disabled . | . . . . . . . . . . . . . . . . . . . . . . . Actions | -11 -10 -10 -9 -9 -8 -8 -7 -7 -7 -7 -6 -6 -6 -6 -6 -6 -5 -5 -5 -5 -4 -4 --------- Run | Scr Mat Min Mat Min Mat Sto Fac Low Low Zio Pro Fac Ext Cet Arc Hub Fac Upp Upp Zhi Pro Fac Total 15942 | 50 387 63 560 725 452 910 1286 991 2138 898 549 156 2493 164 131 669 613 363 561 350 559 874 Wait 1661 | . 6 2 17 1 22 33 287 27 810 22 12 6 201 . 17 35 40 1 20 11 9 82 Move 12362 | 43 315 44 433 683 371 671 852 938 1260 833 492 131 1842 141 98 592 462 304 458 268 469 662 Hop . | . . . . . . . . . . . . . . . . . . . . . . . Pick Up 213 | 1 10 . 23 4 13 36 10 7 6 11 . 3 32 2 1 6 12 . 7 13 3 13 Fast Attach 114 | 6 4 . 9 2 7 12 4 1 2 5 2 7 19 2 1 . 11 . 3 6 . 11 Attach 107 | . 1 3 4 2 2 16 13 2 3 1 6 . 10 . 1 . 14 2 2 3 6 16 Detach 24 | . . . 1 . 1 2 1 1 1 . . 1 4 . . . 1 . . 3 . 8 Swap 122 | . 1 . 3 . 1 12 26 1 4 4 . 1 15 2 2 8 18 8 3 . 8 5 Drop 173 | . 2 . 14 3 7 38 3 8 5 17 . 1 28 2 2 5 5 1 . 16 1 15 Fire 722 | . 48 14 56 24 26 65 82 6 42 . 36 6 48 15 9 23 48 25 32 30 29 58 Melee 110 | . . . . . . 9 7 . 1 5 1 . 87 . . . . . . . . . Ram 10 | . . . . 6 . . . . . . . . . . . . . . . . . 4 Kick . | . . . . . . . . . . . . . . . . . . . . . . . Crush 22 | . . . . . 2 8 1 . . . . . 9 . . . 2 . . . . . Escape Stasis 12 | . . . . . . 8 . . . . . . 4 . . . . . . . . . Rewire 287 | . . . . . . . . . 1 . . . 194 . . . . 22 36 . 34 . Trap 3 | . . . . . . . . . 3 . . . . . . . . . . . . . Miscellaneous . | . . . . . . . . . . . . . . . . . . . . . . . Route ------- -11/Scrapyard -10/Materials (discovered 3 exits: *Mat / [*Min x2]) -10/Mines -9/Materials -9/Mines (discovered 2 exits: *Mat x2) -8/Materials (discovered 2 exits: *Sto x2) -8/Storage (discovered 2 exits: *Fac / [*Rec]) -7/Factory (discovered 3 exits: *Fac / *Low x2) -7/Lower Caves -7/Lower Caves (discovered 2 exits: *Fac / *Zio) -7/Zion -6/Proximity Caves -6/Factory (discovered 3 exits: Fac / Low / *Ext) -6/Extension (discovered 2 exits: *Fac / *Cet) -6/Cetus -6/Archives (discovered 3 exits: *Fac / *Hub x2) -6/Hub_04(d) -5/Factory (discovered 6 exits: Fac x4 / *Upp x2) -5/Upper Caves -5/Upper Caves -5/Zhirov -4/Proximity Caves -4/Factory (discovered 5 exits: Res x3 / Upp x2) History --------- Turn | Location | Event 4 | -11/Scrapyard | Discovered new exit (range 15) 75 | -11/Scrapyard | Entered Materials 304 | -10/Materials | Build established: Mutant 324 | -10/Materials | Discovered new exit (range 3) 387 | -10/Materials | Discovered new exit (range 13) 577 | -10/Materials | Discovered new exit (range 14) 688 | -10/Materials | Core integrity fell below 50% 737 | -10/Materials | Entered Mines 745 | -10/Mines | Assembled infested the area 750 | -10/Mines | Assisted by a Guerilla fighting off Assembled 759 | -10/Mines | Met a Derelict bent on vengeance 772 | -10/Mines | Core integrity fell below 20% 819 | -10/Mines | Lost 6 parts (1p2n1u2w) 851 | -10/Mines | Discovered new exit (range 6) 859 | -10/Mines | Entered Materials 859 | -9/Materials | Evolved 2 slots: Propulsion x1, Weapon x1 1160 | -9/Materials | Build established: Gunner 1517 | -9/Materials | Discovered new exit (range 11) 1962 | -9/Materials | Entered Mines 2123 | -9/Mines | Build established: Scavenger-Skirmisher 2123 | -9/Mines | Received a Rocket Launcher from a helpful Derelict 2245 | -9/Mines | Discovered new exit (range 11) 2656 | -9/Mines | Found a hidden stash of uninstalled traps 2680 | -9/Mines | Discovered new exit (range 11) 2891 | -9/Mines | Entered Materials 2891 | -8/Materials | Evolved 2 slots: Utility x2 2892 | -8/Materials | Identified exit to Storage 3186 | -8/Materials | Build established: Scavenger-Tank 3817 | -8/Materials | Entered Storage 4055 | -8/Storage | Lost 3 parts (1p1n1u) 4077 | -8/Storage | Destroyed 9 combat bots 4142 | -8/Storage | Identified exit to Factory 4186 | -8/Storage | Garrison activated, responded to threat 4311 | -8/Storage | Lost 5 parts (1n2u2w) 4356 | -8/Storage | Found Prototype Device 4359 | -8/Storage | Assisted by bots powering up and referring to "LRC-V3" 4656 | -8/Storage | Build established: Commander-Mutant 4659 | -8/Storage | Used back door to open Recycling access 4659 | -8/Storage | Discovered new exit (range 4) 5408 | -8/Storage | Allied Derelicts emerged from ambush trap array 5470 | -8/Storage | Build established: Commander-Tank 5660 | -8/Storage | Met 01-MTF 5685 | -8/Storage | Identified Active Sensor Suite 5818 | -8/Storage | Entered Factory 5818 | -7/Factory | Accompanied by 9 allies (01-MTF) 5818 | -7/Factory | Evolved 2 slots: Utility x2 5823 | -7/Factory | 01-MTF left 5963 | -7/Factory | Build established: Commander-Skirmisher 6683 | -7/Factory | Garrison activated, responded to threat 6992 | -7/Factory | Build established: Skirmisher 7345 | -7/Factory | Discovered new exit (range 13) 7372 | -7/Factory | Identified exit to Factory 7426 | -7/Factory | Cargo convoy interrupted 7818 | -7/Factory | First assault squad dispatched 8030 | -7/Factory | Build established: Scavenger-Skirmisher 8136 | -7/Factory | Identified exit to Lower Caves 8397 | -7/Factory | Found Active Sensor Suite 8413 | -7/Factory | Lost 3 parts (1p1n1w) 8441 | -7/Factory | Entered Lower Caves 9283 | -7/Lower Caves | Learned location of 2 exits from Factory 10365 | -7/Lower Caves | Discovered new exit (range 6) 10389 | -7/Lower Caves | Identified exit to Lower Caves 10761 | -7/Lower Caves | Entered another Lower Caves area 10819 | -7/Lower Caves | Discovered exit to Factory (range 15) 12106 | -7/Lower Caves | Build established: Scavenger-Mutant 12990 | -7/Lower Caves | Found Alien Artifact 12990 | -7/Lower Caves | Identified Core Expander 12990 | -7/Lower Caves | Installed Core Expander, added new Weapon slot 13282 | -7/Lower Caves | Build established: Scavenger-Assassin 13958 | -7/Lower Caves | Build established: Scavenger-Mutant 14387 | -7/Lower Caves | Encountered a Warlord checkpoint 14588 | -7/Lower Caves | Discovered new exit (range 7) 14608 | -7/Lower Caves | Build established: Skirmisher 14612 | -7/Lower Caves | Identified exit to Zion 14698 | -7/Lower Caves | Entered Zion 14794 | -7/Zion | System corruption cleaned by Quarantine Array 14958 | -7/Zion | Discovered new exit (range 12) 15596 | -7/Zion | Given the Hacking Drone Bay 15606 | -7/Zion | Found Prototype Device 15729 | -7/Zion | Found GAL Module 15795 | -7/Zion | Build established: Assassin 15840 | -7/Zion | Given A8's code to call for help 16133 | -7/Zion | Found Prototype Device 16133 | -7/Zion | Identified Bomb Factory No. 2 16581 | -7/Zion | Identified Hacking Drone Bay 16773 | -7/Zion | Identified exit to Proximity Caves 16775 | -7/Zion | Entered Proximity Caves 16790 | -6/Proximity Caves | Learned Factory stockpile data 17065 | -6/Proximity Caves | Build established: Skirmisher 17127 | -6/Proximity Caves | Destroyed 7 combat bots 17744 | -6/Proximity Caves | Spotted B-75 Beast 17810 | -6/Proximity Caves | Destroyed B-75 Beast 17839 | -6/Proximity Caves | Lost 7 parts (3n1u3w) 18006 | -6/Proximity Caves | Discovered exit to Factory (range 42) 18202 | -6/Proximity Caves | Build established: Gunner 18392 | -6/Proximity Caves | Entered Factory 18392 | -6/Factory | Evolved 2 slots: Propulsion x2 18393 | -6/Factory | Identified exit to Factory 18393 | -6/Factory | Identified exit to Lower Caves 18692 | -6/Factory | Discovered new exit (range 22) 18806 | -6/Factory | Entered Extension 19226 | -6/Extension | Build established: Scavenger-Mutant 19387 | -6/Extension | Rescued a captive Derelict 19762 | -6/Extension | Build established: Scavenger-Skirmisher 20219 | -6/Extension | Spotted B-75 Beast 20521 | -6/Extension | Spotted B-75 Beast 20526 | -6/Extension | Rescued a captive Derelict 20606 | -6/Extension | Rescued a captive Derelict 20607 | -6/Extension | Rescued a captive Derelict 20663 | -6/Extension | Build established: Scavenger-Mutant 20666 | -6/Extension | Rescued a captive Derelict 20666 | -6/Extension | Rescued a captive Derelict 20755 | -6/Extension | Rescued a captive Derelict 21216 | -6/Extension | Discovered exit to Factory (range 10) 21218 | -6/Extension | Discovered new exit (range 6) 21461 | -6/Extension | Destroyed B-75 Beast 21483 | -6/Extension | Destroyed B-75 Beast 21596 | -6/Extension | Build established: Scavenger-Skirmisher 22181 | -6/Extension | Disrupted transfer network 22364 | -6/Extension | Build established: Mutant 22642 | -6/Extension | Rescued A7 23034 | -6/Extension | Build established: Scavenger-Assassin 23302 | -6/Extension | Identified exit to Cetus 23312 | -6/Extension | Entered Cetus 23312 | -6/Cetus | Accompanied by 1 ally (A7) 23317 | -6/Cetus | Acquired a Cetus Manufacturing Module code from A7 23335 | -6/Cetus | Spotted Cetus Guard 23335 | -6/Cetus | Spotted Cetus Guard 23339 | -6/Cetus | Spotted Cetus Guard 23339 | -6/Cetus | Spotted Cetus Guard 23345 | -6/Cetus | Allies destroyed Cetus Guard 23349 | -6/Cetus | Allies destroyed Cetus Guard 23349 | -6/Cetus | Allies destroyed Cetus Guard 23359 | -6/Cetus | Allies destroyed Cetus Guard 23463 | -6/Cetus | Started Cetus Manufacturing Module 23488 | -6/Cetus | Manufactured an Enhanced Grunt 23513 | -6/Cetus | Manufactured an Enhanced Grunt 23538 | -6/Cetus | Manufactured an Enhanced Grunt 23563 | -6/Cetus | Manufactured an Enhanced Grunt 23566 | -6/Cetus | Cetus Manufacturing Module disabled 23621 | -6/Cetus | Escorted A7 to Cetus Mainframe 23642 | -6/Cetus | Discovered new exit (range 22) 23690 | -6/Cetus | Identified exit to Archives 23693 | -6/Cetus | Entered Archives 23693 | -6/Archives | Accompanied by 5 allies (A7) 23698 | -6/Archives | Received a hacking code to weaken MAIN.C 23755 | -6/Archives | Discovered new exit (range 22) 23791 | -6/Archives | Discovered new exit (range 22) 23803 | -6/Archives | Discovered exit to Factory (range 22) 23905 | -6/Archives | Build established: Scavenger-Skirmisher 23962 | -6/Archives | Identified exit to Hub_04(d) 23972 | -6/Archives | Entered Hub_04(d) 23972 | -6/Hub_04(d) | Accompanied by 4 allies 24610 | -6/Hub_04(d) | Discovered exit to Factory (range 14) 25094 | -6/Hub_04(d) | Build established: Scavenger-Mutant 25410 | -6/Hub_04(d) | Network Hub disabled 25462 | -6/Hub_04(d) | Network Hub disabled 25497 | -6/Hub_04(d) | Entered Factory 25497 | -5/Factory | Evolved 2 slots: Power x1, Propulsion x1 25694 | -5/Factory | Identified exit to Factory 25695 | -5/Factory | Identified exit to Upper Caves 25838 | -5/Factory | Lost 8 parts (1p3n2u2w) 26070 | -5/Factory | Build established: Scavenger-Tank 26132 | -5/Factory | Lost 3 parts (1p2n) 26745 | -5/Factory | Found Prototype Launcher 26748 | -5/Factory | Found Prototype Launcher 26784 | -5/Factory | Identified Mni. Smartbomb Launcher (x2) 26828 | -5/Factory | Entered Upper Caves 26830 | -5/Upper Caves | Attracted the attention of an 0b10 outpost 26872 | -5/Upper Caves | Destroyed 7 combat bots 26876 | -5/Upper Caves | Lost 3 parts (2n1w) 27150 | -5/Upper Caves | Learned 12 Factory zone layouts 27302 | -5/Upper Caves | Build established: Scavenger-Mutant 27327 | -5/Upper Caves | Learned 4 Factory zone layouts 27632 | -5/Upper Caves | Discovered new exit (range 12) 27651 | -5/Upper Caves | Identified exit to Upper Caves 27653 | -5/Upper Caves | Entered another Upper Caves area 27653 | -5/Upper Caves | Accompanied by 1 ally 27745 | -5/Upper Caves | Learned Factory security intel 27949 | -5/Upper Caves | Learned location of 1 exit from Factory 27981 | -5/Upper Caves | Encountered a Warlord checkpoint 28461 | -5/Upper Caves | Discovered new exit (range 15) 28495 | -5/Upper Caves | Identified exit to Zhirov 28696 | -5/Upper Caves | Attacked by a delusional Derelict stockpiling Unaware 28899 | -5/Upper Caves | Entered Zhirov 28899 | -5/Zhirov | Accompanied by 4 allies 28901 | -5/Zhirov | Discovered new exit (range 3) 28934 | -5/Zhirov | Met Zhirov 28965 | -5/Zhirov | Learned location of Quarantine (-3) 28965 | -5/Zhirov | Learned location of Testing (-2) 28965 | -5/Zhirov | Learned location of Command (-1) 28995 | -5/Zhirov | Zhirov requested help retrieving the SGEMP Prototype 29023 | -5/Zhirov | Found Alien Artifact 29023 | -5/Zhirov | Identified Integrated Reactor 29023 | -5/Zhirov | Installed Integrated Reactor, increased core energy generation (+10) 29048 | -5/Zhirov | Found Alien Artifact 29296 | -5/Zhirov | Identified exit to Proximity Caves 29441 | -5/Zhirov | Entered Proximity Caves 29441 | -4/Proximity Caves | Accompanied by 4 allies 29459 | -4/Proximity Caves | Attracted the attention of an 0b10 outpost 29712 | -4/Proximity Caves | Build established: Scavenger-Tank 29794 | -4/Proximity Caves | Spotted B-86 Titan 29809 | -4/Proximity Caves | Allies destroyed B-86 Titan 29838 | -4/Proximity Caves | Lost 4 parts (1p2n1u) 30176 | -4/Proximity Caves | Learned location of 1 exit from Research 30570 | -4/Proximity Caves | Discovered exit to Factory (range 5) 30609 | -4/Proximity Caves | Entered Factory 30609 | -4/Factory | Accompanied by 2 allies 30609 | -4/Factory | Evolved 2 slots: Utility x2 30610 | -4/Factory | Identified exit to Research 30727 | -4/Factory | Spotted B-86 Titan 30744 | -4/Factory | Destroyed B-86 Titan 30783 | -4/Factory | Identified Transdimensional Reconstructor 30783 | -4/Factory | Warped through subspace 30813 | -4/Factory | Lost 13 parts (1p6n4u2w) 30971 | -4/Factory | Lost 5 parts (1n2u2w) 31034 | -4/Factory | Identified exit to Upper Caves 31087 | -4/Factory | Core integrity fell below 50% 31172 | -4/Factory | Fabricated Enh. Nova Cannon (x1) 31239 | -4/Factory | Build established: Mutant 31419 | -4/Factory | Fabricated Enh. Quantum Rifle (x2) 31593 | -4/Factory | Core integrity fell below 20% 31640 | -4/Factory | Destroyed by G-67 Veteran with Electrolaser Last Messages --------------- 31483_ U-05 Engineer builds a Wall. 31484_ U-05 Engineer lays Concrete. 31488_ U-05 Engineer builds a Wall. 31488_ U-05 Engineer lays Concrete. 31498_ K-01 Serf cleans the Power Conduit. 31507_ Slug penetrates Wall. 31517_ System corrupted: Energy discharge (-27). 31533_ System corrupted: Matter fused (-10). 31573_ Penetrated by Slug. 31575_ Slug penetrates Wall. 31580_ Acquired Field Propulsion Array. 31581_ Penetrated by Slug. 31591_ Acquired Power Amplifier. 31598_ System corrupted: Energy discharge (-23). 31607_ G-67 Veteran IFF system glitched. 31619_ Enh. Nova Cannon destroyed. 31623_ Acquired Com. Wheel. 31624_ Field Propulsion Array destroyed. 31636_ BSAIM|AAI3Y% REVSWD4WI JQKYNJ>| E7G7VX 31639_ Power Amplifier destroyed. Map ----- +----------------------------------------------------+ | ????????????????????????????????????????????? """" | | ????????????????????????????????????????????? """" | | ????????????????????????????????????????????? | | ?????????????????????????????????????????????##### | | ?????????????????????????????????????????????????? | | ?????????????????????????????????????????????????? | | >????????????????????????????????????????????????? | | ??????????????????????????? ??????????????????? | | ??????????????????????????? #?????????????????? | | ??????????????????????????# #?????????????????? | | ??????????????????????????# #??##############?? | | ??????????????????????????# #??# #?? | | ??????????????????????????# #??# #?? | | ??????????????????????????# #??# #?? | | ??????????????????????????/ #??# #?? | | ??????????????????????????# #??# """ """ #?? | | ??????????????????????????# ##?# """ """ #?? | | ??????????????????????????# T#?# """ """ #?? | | ??????????????????????????# g ### #?? | | ????????????############### #?#" """ """ #?? | | ??????????? A#?## """ """ #?? | | ??????????? #??# """ """ #?? | | # #??# #?? | | # #??##+####+######## | | # s ##### | | + @ sss | | # ######+## !! | | ###+####### ##??????# !! | | # ####+####??????# gg !! | | # ## #??????# ########## | | # ## #??????# #????????# | | # ## #??????# +????????# | | # ## #??????# ###????????+ | | ### ## #??????# ???????????# | | ??# ## +?????? ???????????# | | ??# #########??????# ???????????# | | ??# #??????????????# ???????????# | | ??######+######???????????# ???????????# | | ######## ######???????????????????# | | ???????????????????# """""" | | ######???????????????????# """""" | | """" # """ ???????????????????# """""" | | """" # "Y" ???????????????????# """""" | | """" # ???????????????????# ??"""" | | # ???????????????????# ??"""" | | # ??????????????????? ??"""" | | ##### # ??????????????????????????""" | | ??????????????????????????????????????????????""" | | ????????????????????????????????????? ??? | | ????????????????????????????????????? | +----------------------------------------------------+ Best States ------------- Heat Dissipation 71 Energy Generation 48 Energy Capacity 730 Matter Stores 362 Matter Capacity 400 Sight Range 22 Robot Scan Range 20 Terrain Scan Density 10 Jamming Range 14 Power Amplification 30 EM Shielding 2 Armor Coverage 600 Utility Shielding 66 Weapon Shielding 66 Weapon Cycling 15 Evasion (%) 62 Core Analysis 8 Recoil Reduction 6 Kinecelleration 30 Offensive Hacking 14 Item Schematics ----------------- Autogun | -8/Materials | Scanalyzed F-cell Engine | -7/Factory | Scanalyzed Adv. Medium Treads | -6/Hub_04(d) | Hacked Assault Drone Bay | -5/Zhirov | Free Exp. Heat Sink | -5/Zhirov | Free Exp. Optical Array | -5/Zhirov | Free Imp. Arc Thrower | -5/Zhirov | Free Robot Schematics ------------------ G-47 Trooper | -6/Extension | Hacked Fabricated ------------ Enh. Nova Cannon | x1 | -4/Factory | Preloaded Enh. Quantum Rifle | x2 | -4/Factory | Preloaded Alien Tech Used ----------------- Core Expander Integrated Reactor Transdimensional Reconstructor Achievements -------------- None Challenges ------------ None Game ------ Seed DisposableVortexDiverter Manual? 0 Play Time 02:28:51 Cumulative 153.0 hours Start 2022.02.04 @ 16:20:44 End 2022.02.08 @ 07:31:21 Sessions 7 Manual Loads 0 Difficulty Rogue Special Mode None Game No. 253 Rogue 236 Adventurer 4 Explorer 13 Win Type - Total 8 Types 6/0/0/2/0/0/0/0/0 Lore% 65 Gallery% 83 Achievement% 68 Wizard Run 0 Options --------- ASCII 0 Keyboard 1 Movement Numpad Keybinds 0 Fullscreen 1 Font 18/SmallcapsGlow Map View 76x50 Tactical HUD 1 Map Filters NONE Filters NONE Steam 1 RUN: eaa7b87d-94ba-40b7-83f3-057063cfc893